fUST/lending_fUST_20240131
["ID","MTS","AMOUNT","RATE_DAILY","PERIOD"]
[313067935,1706715031997,-156.80447565,0.00018551,2]
[313067936,1706715032007,-176.43494112,0.00018551,2]
[313067937,1706715032016,-903.96695073,0.00018551,2]
[313067938,1706715032025,-15633.76496287,0.00018551,2]
[313067939,1706715032035,-260.86180484,0.00018551,2]
[313067940,1706715032044,-261.19101477,0.00018551,2]
[313067941,1706715032054,-239.32141513,0.00018551,2]
[313067942,1706715032065,-366.2903009,0.00018551,2]
[313067943,1706715032075,-4773.19555435,0.00018551,2]
[313067944,1706715032084,-155.01085035,0.00018551,2]
[313067945,1706715032093,-204.82762583,0.00018551,2]
[313067946,1706715032101,-155.58977055,0.00018551,2]
[313067947,1706715032111,-155.35572105,0.00018552,2]
[313067948,1706715032119,-1752.20606518,0.00018552,2]
[313067949,1706715032128,-155.04461547,0.00018552,2]
[313067950,1706715032137,-1697.70596645,0.00018552,2]
[313067951,1706715032147,-418.33648437,0.00018739,2]
[313067952,1706715032157,-150.0,0.000189,2]
[313067953,1706715032166,-418.33648437,0.00019033,2]
[313067954,1706715032175,-608.56497052,0.00019178,2]
[313067955,1706715032185,-500.0,0.00019178,2]
[313067956,1706715032196,-500.0,0.00019178,2]
[313067957,1706715032206,-500.0,0.00019178,2]
[313067958,1706715032215,-645.59,0.00019178,2]
[313067959,1706715032225,-500.0,0.00019178,2]
[313067960,1706715032235,-500.0,0.00019178,2]
[313067961,1706715032244,-500.0,0.00019178,2]
[313067962,1706715032254,-500.0,0.00019178,2]
[313067963,1706715032263,-500.0,0.00019178,2]
[313067964,1706715032272,-500.0,0.00019178,2]
[313067965,1706715032282,-500.0,0.00019178,2]
[313067966,1706715032291,-500.0,0.00019178,2]
[313067967,1706715032300,-1647.38,0.00019178,2]
[313067968,1706715032312,-500.0,0.00019178,2]
[313067969,1706715032321,-500.0,0.00019178,2]
[313067970,1706715032331,-500.0,0.00019178,2]
[313067971,1706715032340,-727.67,0.00019178,2]
[313067972,1706715032349,-200.0,0.00019178,2]
[313067973,1706715032358,-508.23528171,0.00019178,2]
[313067974,1706715032368,-500.0,0.00019178,2]
[313067975,1706715032377,-500.0,0.00019178,2]
[313067976,1706715032386,-895.25,0.00019178,2]
[313067977,1706715032396,-500.0,0.00019178,2]
[313067978,1706715032406,-500.0,0.00019178,2]
[313067979,1706715032415,-230.73943628,0.00019178,2]
[313067980,1706715032424,-500.0,0.00019178,2]
[313067981,1706715032433,-500.0,0.00019178,2]
[313067982,1706715032443,-500.0,0.00019178,2]
[313067983,1706715032452,-500.0,0.00019178,2]
[313067984,1706715032463,-554.96,0.00019178,2]
[313067985,1706715032473,-1251.87,0.00019178,2]
[313067986,1706715032483,-500.0,0.00019178,2]
[313067987,1706715032492,-517.21069753,0.00019178,2]
[313067988,1706715032502,-500.0,0.00019178,2]
[313067989,1706715032511,-1838.66,0.00019178,2]
[313067990,1706715032520,-776.17,0.00019178,2]
[313067991,1706715032530,-500.0,0.00019178,2]
[313067992,1706715032539,-500.0,0.00019178,2]
[313067993,1706715032551,-500.0,0.00019178,2]
[313067994,1706715032561,-500.0,0.00019178,2]
[313067995,1706715032570,-4835.08,0.00019178,2]
[313067996,1706715032579,-500.0,0.00019178,2]
[313067997,1706715032593,-500.0,0.00019178,2]
[313067998,1706715032602,-930.09,0.00019178,2]
[313067999,1706715032611,-534.87751184,0.00019178,2]
[313068000,1706715032621,-500.0,0.00019178,2]
[313068001,1706715032630,-500.0,0.00019178,2]
[313068002,1706715032639,-959.43,0.00019178,2]
[313068003,1706715032648,-500.0,0.00019178,2]
[313068004,1706715032657,-955.13,0.00019178,2]
[313068005,1706715032668,-500.0,0.00019178,2]
[313068006,1706715032678,-19519.42,0.00019178,2]
[313068007,1706715032687,-500.0,0.00019178,2]
[313068008,1706715032696,-500.0,0.00019178,2]
[313068009,1706715032705,-500.0,0.00019178,2]
[313068010,1706715032714,-247.27742966,0.00019178,2]
[313068011,1706715032724,-510.80103802,0.00019178,2]
[313068012,1706715032733,-500.0,0.00019178,2]
[313068013,1706715032742,-630.11,0.00019178,2]
[313068014,1706715032752,-500.0,0.00019178,2]
[313068015,1706715032761,-500.0,0.00019178,2]
[313068016,1706715032771,-3422.84,0.00019178,2]
[313068017,1706715032780,-500.0,0.00019178,2]
[313068018,1706715032789,-500.0,0.00019178,2]
[313068019,1706715032798,-500.0,0.00019178,2]
[313068020,1706715032808,-10840.86,0.00019178,2]
[313068021,1706715032819,-500.0,0.00019178,2]
[313068022,1706715032828,-500.0,0.00019178,2]
[313068023,1706715032837,-500.0,0.00019178,2]
[313068024,1706715032847,-821.67,0.00019178,2]
[313068025,1706715032856,-830.05,0.00019178,2]
[313068026,1706715032865,-1037.81,0.00019178,2]
[313068027,1706715032875,-500.0,0.00019178,2]
[313068028,1706715032884,-828.07,0.00019178,2]
[313068029,1706715032894,-1462.74,0.00019178,2]
[313068030,1706715032904,-1652.32,0.00019178,2]
[313068031,1706715032914,-500.0,0.00019178,2]
[313068032,1706715032925,-1673.22,0.00019178,2]
[313068033,1706715032937,-15290.87,0.00019178,2]
[313068034,1706715032946,-3759.32,0.00019178,2]
[313068035,1706715032955,-500.0,0.00019178,2]
[313068036,1706715032964,-4335.94,0.00019178,2]
[313068037,1706715032974,-3359.32,0.00019178,2]
[313068038,1706715032983,-9272.51,0.00019178,2]
[313068039,1706715032992,-144.83976789,0.00019178,2]
[313068040,1706715033006,-355.16023211,0.00019178,2]
[313068041,1706715033015,-2196.8,0.00019178,2]
[313068042,1706715033024,-564.91,0.00019178,2]
[313068043,1706715033034,-353.14301822,0.00019178,2]
[313068044,1706715033053,-1554.33698178,0.00019178,2]
[313068045,1706715033065,-4819.18,0.00019178,2]
[313068046,1706715033075,-500.0,0.00019178,2]
[313068047,1706715033173,-500.0,0.00019178,2]
[313068048,1706715033183,-1644.62,0.00019178,2]
[313068049,1706715033195,-500.0,0.00019178,2]
[313068050,1706715033206,-500.0,0.00019178,2]
[313068051,1706715033217,-1941.48,0.00019178,2]
[313068052,1706715033227,-500.0,0.00019178,2]
[313068053,1706715033238,-500.0,0.00019178,2]
[313068054,1706715033248,-500.0,0.00019178,2]
[313068055,1706715033258,-500.0,0.00019178,2]
[313068056,1706715033269,-500.0,0.00019178,2]
[313068057,1706715033279,-564.61,0.00019178,2]
[313068058,1706715033288,-500.0,0.00019178,2]
[313068059,1706715033298,-500.0,0.00019178,2]
[313068060,1706715033309,-500.0,0.00019178,2]
[313068061,1706715033322,-1929.66,0.00019178,2]
[313068062,1706715033331,-500.0,0.00019178,2]
[313068063,1706715033340,-1765.6,0.00019178,2]
[313068064,1706715033350,-500.0,0.00019178,2]
[313068065,1706715033359,-500.0,0.00019178,2]
[313068066,1706715033368,-500.0,0.00019178,2]
[313068067,1706715033377,-500.0,0.00019178,2]
[313068068,1706715033388,-500.0,0.00019178,2]
[313068069,1706715033398,-2831.04,0.00019178,2]
[313068070,1706715033407,-1183.02,0.00019178,2]
[313068071,1706715033417,-500.0,0.00019178,2]
[313068072,1706715033426,-651.75,0.00019178,2]
[313068073,1706715033436,-500.0,0.00019178,2]
[313068074,1706715033445,-500.0,0.00019178,2]
[313068075,1706715033454,-2461.89,0.00019178,2]
[313068076,1706715033465,-418.33648437,0.00019328,2]
[313068077,1706715033474,-500.0,0.00019452,2]
[313068078,1706715033484,-500.0,0.00019452,2]
[313068079,1706715033493,-500.0,0.00019452,2]
[313068080,1706715033503,-645.59,0.00019452,2]
[313068081,1706715033512,-500.0,0.00019452,2]
[313068082,1706715033521,-500.0,0.00019452,2]
[313068083,1706715033530,-500.0,0.00019452,2]
[313068084,1706715033539,-500.0,0.00019452,2]
[313068085,1706715033551,-500.0,0.00019452,2]
[313068086,1706715033560,-500.0,0.00019452,2]
[313068087,1706715033570,-1647.38,0.00019452,2]
[313068088,1706715033579,-521.15057228,0.00019452,2]
[313068089,1706715033592,-500.0,0.00019452,2]
[313068090,1706715033604,-727.67,0.00019452,2]
[313068091,1706715033613,-500.0,0.00019452,2]
[313068092,1706715033622,-895.25,0.00019452,2]
[313068093,1706715033632,-500.0,0.00019452,2]
[313068094,1706715033641,-500.0,0.00019452,2]
[313068095,1706715033651,-500.0,0.00019452,2]
[313068096,1706715033661,-525.23108235,0.00019452,2]
[313068097,1706715033670,-500.0,0.00019452,2]
[313068098,1706715033680,-313.01019295,0.00019452,2]
[313068099,1706715033689,-554.96,0.00019452,2]
[313068100,1706715033699,-1251.87,0.00019452,2]
[313068101,1706715033707,-500.0,0.00019452,2]
[313068102,1706715033716,-500.0,0.00019452,2]
[313068103,1706715033725,-1838.66,0.00019452,2]
[313068104,1706715033736,-776.17,0.00019452,2]
[313068105,1706715033745,-500.0,0.00019452,2]
[313068106,1706715033754,-500.0,0.00019452,2]
[313068107,1706715033764,-500.0,0.00019452,2]
[313068108,1706715033773,-498.73513897,0.00019452,2]
[313068109,1706715033783,-4835.08,0.00019452,2]
[313068110,1706715033791,-500.0,0.00019452,2]
[313068111,1706715033800,-930.09,0.00019452,2]
[313068112,1706715033809,-959.43,0.00019452,2]
[313068113,1706715033820,-955.13,0.00019452,2]
[313068114,1706715033829,-19519.42,0.00019452,2]
[313068115,1706715033838,-500.0,0.00019452,2]
[313068116,1706715033847,-500.0,0.00019452,2]
[313068117,1706715033857,-500.0,0.00019452,2]
[313068118,1706715033866,-630.11,0.00019452,2]
[313068119,1706715033875,-500.0,0.00019452,2]
[313068120,1706715033885,-500.0,0.00019452,2]
[313068121,1706715033894,-3422.84,0.00019452,2]
[313068122,1706715033903,-500.0,0.00019452,2]
[313068123,1706715033913,-500.0,0.00019452,2]
[313068124,1706715033922,-500.0,0.00019452,2]
[313068125,1706715033932,-10840.86,0.00019452,2]
[313068126,1706715033941,-500.0,0.00019452,2]
[313068127,1706715033951,-500.0,0.00019452,2]
[313068128,1706715033961,-821.67,0.00019452,2]
[313068129,1706715033970,-830.05,0.00019452,2]
[313068130,1706715033979,-1037.81,0.00019452,2]
[313068131,1706715033988,-500.0,0.00019452,2]
[313068132,1706715033998,-828.07,0.00019452,2]
[313068133,1706715034007,-1462.74,0.00019452,2]
[313068134,1706715034016,-1652.32,0.00019452,2]
[313068135,1706715034026,-500.0,0.00019452,2]
[313068136,1706715034035,-1673.22,0.00019452,2]
[313068137,1706715034044,-15290.87,0.00019452,2]
[313068138,1706715034053,-3759.32,0.00019452,2]
[313068139,1706715034063,-4061.18094488,0.00019452,2]
[313068140,1706715034112,1996.50298693,0.00018499,2]
[313068190,1706715037869,-508.71,0.00019178,2]
[313068192,1706715037879,-3137.61,0.00019178,2]
[313068194,1706715037887,-500.0,0.00019178,2]
[313068196,1706715037897,-274.75905512,0.00019452,2]
[313068197,1706715037906,-3359.32,0.00019452,2]
[313068199,1706715037915,-9272.51,0.00019452,2]
[313068201,1706715037924,-2196.8,0.00019452,2]
[313068202,1706715037934,-564.91,0.00019452,2]
[313068203,1706715037943,-1907.48,0.00019452,2]
[313068204,1706715037953,-4819.18,0.00019452,2]
[313068205,1706715037962,-1644.62,0.00019452,2]
[313068206,1706715037971,-500.0,0.00019452,2]
[313068207,1706715037980,-500.0,0.00019452,2]
[313068208,1706715037989,-500.0,0.00019452,2]
[313068209,1706715037999,-1941.48,0.00019452,2]
[313068210,1706715038008,-500.0,0.00019452,2]
[313068211,1706715038017,-500.0,0.00019452,2]
[313068212,1706715038026,-564.61,0.00019452,2]
[313068213,1706715038035,-500.0,0.00019452,2]
[313068214,1706715038045,-500.0,0.00019452,2]
[313068215,1706715038055,-264.12011937,0.00019452,2]
[313068216,1706715038064,-1929.66,0.00019452,2]
[313068217,1706715038075,-303.99726441,0.00019452,2]
[313068218,1706715038085,-1765.6,0.00019452,2]
[313068219,1706715038094,-500.0,0.00019452,2]
[313068220,1706715038103,-500.0,0.00019452,2]
[313068221,1706715038112,-500.0,0.00019452,2]
[313068222,1706715038121,-500.0,0.00019452,2]
[313068223,1706715038131,-500.0,0.00019452,2]
[313068224,1706715038141,-2831.04,0.00019452,2]
[313068225,1706715038228,-1183.02,0.00019452,2]
[313068226,1706715038237,-500.00000195,0.00019452,2]
[313068227,1706715038247,-651.75,0.00019452,2]
[313068228,1706715038257,-500.0,0.00019452,2]
[313068229,1706715038267,-500.0,0.00019452,2]
[313068230,1706715038277,-2461.89,0.00019452,2]
[313068231,1706715038287,-508.71,0.00019452,2]
[313068232,1706715038296,-3137.61,0.00019452,2]
[313068233,1706715038305,-486.83043532,0.00019452,2]
[313068234,1706715038314,-418.33648437,0.00019622,2]
[313068235,1706715038326,-155.26554975,0.00019636,2]
[313068236,1706715038335,-155.02480397,0.00019636,2]
[313068237,1706715038344,-155.02480397,0.00019636,2]
[313068238,1706715038354,-608.67713296,0.00019637,2]
[313068239,1706715038363,-309.98443457,0.00019638,2]
[313068240,1706715038372,-155.13334999,0.00019638,2]
[313068241,1706715038382,-309.99381017,0.00019638,2]
[313068242,1706715038391,-269.17682424,0.00019651,2]
[313068243,1706715038400,-174542.12913861,0.00019653,2]
[313068244,1706715038410,-151.0,0.00019653,2]
[313068245,1706715038419,-151.0,0.00019653,2]
[313068246,1706715038431,-151.0,0.00019653,2]
[313068247,1706715038440,-151.0,0.00019653,2]
[313068248,1706715038450,-4409.543309,0.00019653,2]
[313068249,1706715038459,-4409.543309,0.00019653,2]
[313068250,1706715038469,-155.1920337,0.00019722,2]
[313068251,1706715038479,-155.00155002,0.00019722,2]
[313068252,1706715038488,-500.0,0.00019726,2]
[313068253,1706715038497,-500.0,0.00019726,2]
[313068254,1706715038507,-500.0,0.00019726,2]
[313068255,1706715038516,-645.59,0.00019726,2]
[313068256,1706715038525,-500.0,0.00019726,2]
[313068257,1706715038535,-500.0,0.00019726,2]
[313068258,1706715038544,-500.0,0.00019726,2]
[313068259,1706715038554,-500.0,0.00019726,2]
[313068260,1706715038563,-304.37699231,0.00019726,2]
[313068261,1706715038578,-195.26414691,0.00019726,2]
[313068262,1706715038588,-1647.38,0.00019726,2]
[313068263,1706715038598,-500.0,0.00019726,2]
[313068264,1706715038607,-727.67,0.00019726,2]
[313068265,1706715038616,-500.0,0.00019726,2]
[313068266,1706715038626,-895.25,0.00019726,2]
[313068267,1706715038636,-500.0,0.00019726,2]
[313068268,1706715038645,-500.0,0.00019726,2]
[313068269,1706715038655,-500.0,0.00019726,2]
[313068270,1706715038665,-500.0,0.00019726,2]
[313068271,1706715038675,-1251.87,0.00019726,2]
[313068272,1706715038684,-500.0,0.00019726,2]
[313068273,1706715038693,-500.0,0.00019726,2]
[313068274,1706715038703,-1838.66,0.00019726,2]
[313068275,1706715038713,-776.17,0.00019726,2]
[313068276,1706715038722,-500.0,0.00019726,2]
[313068277,1706715038731,-500.0,0.00019726,2]
[313068278,1706715038741,-500.0,0.00019726,2]
[313068279,1706715038749,-151.0,0.00019726,2]
[313068280,1706715038758,-151.0,0.00019726,2]
[313068281,1706715038768,-4835.08,0.00019726,2]
[313068282,1706715038778,-500.0,0.00019726,2]
[313068283,1706715038787,-930.09,0.00019726,2]
[313068284,1706715038796,-959.43,0.00019726,2]
[313068285,1706715038806,-955.13,0.00019726,2]
[313068286,1706715038816,-19519.42,0.00019726,2]
[313068287,1706715038828,-500.0,0.00019726,2]
[313068288,1706715038837,-500.0,0.00019726,2]
[313068289,1706715038846,-500.0,0.00019726,2]
[313068290,1706715038855,-630.11,0.00019726,2]
[313068291,1706715038864,-500.0,0.00019726,2]
[313068292,1706715038873,-500.0,0.00019726,2]
[313068293,1706715038882,-500.0,0.00019726,2]
[313068294,1706715038891,-500.0,0.00019726,2]
[313068295,1706715038901,-500.0,0.00019726,2]
[313068296,1706715038909,-10840.86,0.00019726,2]
[313068297,1706715038919,-500.0,0.00019726,2]
[313068298,1706715038928,-821.67,0.00019726,2]
[313068299,1706715038937,-830.05,0.00019726,2]
[313068300,1706715038947,-1037.81,0.00019726,2]
[313068301,1706715038956,-828.07,0.00019726,2]
[313068302,1706715038965,-1462.74,0.00019726,2]
[313068303,1706715038975,-1652.32,0.00019726,2]
[313068304,1706715038984,-500.0,0.00019726,2]
[313068305,1706715038992,-1673.22,0.00019726,2]
[313068306,1706715039001,-15290.87,0.00019726,2]
[313068307,1706715039010,-3759.32,0.00019726,2]
[313068308,1706715039019,-151.0,0.00019726,2]
[313068309,1706715039028,-151.0,0.00019726,2]
[313068310,1706715039038,-151.0,0.00019726,2]
[313068311,1706715039047,-151.0,0.00019726,2]
[313068312,1706715039056,-4335.94,0.00019726,2]
[313068313,1706715039066,-3359.32,0.00019726,2]
[313068314,1706715039077,-9272.51,0.00019726,2]
[313068315,1706715039086,-2196.8,0.00019726,2]
[313068316,1706715039096,-564.91,0.00019726,2]
[313068317,1706715039106,-1907.48,0.00019726,2]
[313068318,1706715039115,-4819.18,0.00019726,2]
[313068319,1706715039125,-1644.62,0.00019726,2]
[313068320,1706715039135,-376.82205216,0.00019726,2]
[313068321,1706715039144,-500.0,0.00019726,2]
[313068322,1706715039154,-500.0,0.00019726,2]
[313068323,1706715039163,-1941.48,0.00019726,2]
[313068324,1706715039174,-500.0,0.00019726,2]
[313068325,1706715039183,-564.61,0.00019726,2]
[313068326,1706715039193,-500.0,0.00019726,2]
[313068327,1706715039202,-500.0,0.00019726,2]
[313068328,1706715039212,-1929.66,0.00019726,2]
[313068329,1706715039221,-1765.6,0.00019726,2]
[313068330,1706715039230,-500.0,0.00019726,2]
[313068331,1706715039240,-500.0,0.00019726,2]
[313068332,1706715039249,-500.0,0.00019726,2]
[313068333,1706715039258,-500.0,0.00019726,2]
[313068334,1706715039267,-2831.04,0.00019726,2]
[313068335,1706715039277,-1183.02,0.00019726,2]
[313068336,1706715039286,-651.75,0.00019726,2]
[313068337,1706715039295,-500.0,0.00019726,2]
[313068338,1706715039304,-500.0,0.00019726,2]
[313068339,1706715039315,-4409.543309,0.00019726,2]
[313068340,1706715039327,-4409.543309,0.00019726,2]
[313068341,1706715039336,-2461.89,0.00019726,2]
[313068342,1706715039345,-508.71,0.00019726,2]
[313068343,1706715039355,-3137.61,0.00019726,2]
[313068344,1706715039364,-175.40467432,0.00019762,2]
[313068345,1706715039373,-155.01085048,0.00019762,2]
[313068346,1706715039382,-418.97717604,0.00019764,2]
[313068347,1706715039391,-500.0,0.00019764,2]
[313068348,1706715039400,-500.0,0.00019764,2]
[313068349,1706715039409,-1179.45,0.00019764,2]
[313068350,1706715039418,-500.0,0.00019764,2]
[313068351,1706715039428,-500.0,0.00019764,2]
[313068352,1706715039437,-500.0,0.00019764,2]
[313068353,1706715039446,-3784.54,0.00019764,2]
[313068354,1706715039456,-1360.05,0.00019764,2]
[313068355,1706715039467,-500.0,0.00019764,2]
[313068356,1706715039476,-500.0,0.00019764,2]
[313068357,1706715039485,-504.041278,0.00019764,2]
[313068358,1706715039494,-500.0,0.00019764,2]
[313068359,1706715039504,-500.0,0.00019764,2]
[313068360,1706715039513,-500.0,0.00019774,2]
[313068361,1706715039522,-500.0,0.00019775,2]
[313068362,1706715039531,-500.0,0.00019783,2]
[313068363,1706715039540,-500.0,0.00019783,2]
[313068364,1706715039554,-500.0,0.00019784,2]
[313068365,1706715039564,-500.0,0.00019785,2]
[313068366,1706715039581,-2946.87564997,0.00019968,2]
[313068367,1706715039591,-151.0,0.00019968,2]
[313068368,1706715039602,-151.0,0.00019968,2]
[313068369,1706715039612,-155.00155002,0.0002,2]
[313068370,1706715039621,-1200.08348294,0.0002,2]
[313068371,1706715039630,-679.74060206,0.0002,2]
[313068372,1706715039640,-500.0,0.0002,2]
[313068373,1706715039650,-500.0,0.0002,2]
[313068374,1706715039659,-500.0,0.0002,2]
[313068375,1706715039669,-645.59,0.0002,2]
[313068376,1706715039678,-500.0,0.0002,2]
[313068377,1706715039687,-500.0,0.0002,2]
[313068378,1706715039696,-500.0,0.0002,2]
[313068379,1706715039705,-238.39963899,0.0002,2]
[313068380,1706715039714,-151.0,0.0002,2]
[313068381,1706715039723,-1647.38,0.0002,2]
[313068382,1706715039733,-500.0,0.0002,2]
[313068383,1706715039743,-727.67,0.0002,2]
[313068384,1706715039752,-500.0,0.0002,2]
[313068385,1706715039761,-895.25,0.0002,2]
[313068386,1706715039770,-157.87700474,0.0002,2]
[313068387,1706715039779,-500.0,0.0002,2]
[313068388,1706715039787,-500.0,0.0002,2]
[313068389,1706715039796,-500.0,0.0002,2]
[313068390,1706715039805,-1251.87,0.0002,2]
[313068391,1706715039814,-583.751596,0.0002,2]
[313068393,1706715039825,-583.751596,0.0002,2]
[313068398,1706715039908,-151.0,0.0002,2]
[313068399,1706715039918,-500.0,0.0002,2]
[313068400,1706715039927,-500.0,0.0002,2]
[313068401,1706715039937,-1838.66,0.0002,2]
[313068403,1706715039946,-776.17,0.0002,2]
[313068404,1706715039956,-500.0,0.0002,2]
[313068405,1706715039965,-500.0,0.0002,2]
[313068406,1706715039974,-500.0,0.0002,2]
[313068407,1706715039983,-151.0,0.0002,2]
[313068408,1706715039992,-151.0,0.0002,2]
[313068409,1706715040002,-4835.08,0.0002,2]
[313068410,1706715040011,-500.0,0.0002,2]
[313068411,1706715040020,-930.09,0.0002,2]
[313068412,1706715040030,-959.43,0.0002,2]
[313068413,1706715040039,-955.13,0.0002,2]
[313068414,1706715040048,-19519.42,0.0002,2]
[313068415,1706715040057,-188.35420273,0.0002,2]
[313068416,1706715040066,-500.0,0.0002,2]
[313068417,1706715040078,-500.0,0.0002,2]
[313068418,1706715040087,-630.11,0.0002,2]
[313068419,1706715040096,-513.66141901,0.0002,2]
[313068420,1706715040105,-500.0,0.0002,2]
[313068421,1706715040115,-500.0,0.0002,2]
[313068422,1706715040124,-500.0,0.0002,2]
[313068423,1706715040133,-500.0,0.0002,2]
[313068424,1706715040142,-10840.86,0.0002,2]
[313068425,1706715040151,-500.0,0.0002,2]
[313068426,1706715040160,-821.67,0.0002,2]
[313068427,1706715040170,-830.05,0.0002,2]
[313068428,1706715040179,-1037.81,0.0002,2]
[313068429,1706715040188,-828.07,0.0002,2]
[313068430,1706715040197,-1462.74,0.0002,2]
[313068431,1706715040206,-1652.32,0.0002,2]
[313068432,1706715040215,-500.0,0.0002,2]
[313068433,1706715040223,-1673.22,0.0002,2]
[313068434,1706715040233,-15290.87,0.0002,2]
[313068435,1706715040243,-3759.32,0.0002,2]
[313068436,1706715040257,-151.0,0.0002,2]
[313068437,1706715040267,-151.0,0.0002,2]
[313068438,1706715040276,-151.0,0.0002,2]
[313068439,1706715040285,-151.0,0.0002,2]
[313068440,1706715040294,-151.0,0.0002,2]
[313068441,1706715040305,-151.0,0.0002,2]
[313068442,1706715040316,-151.0,0.0002,2]
[313068443,1706715040327,-191.812558,0.0002,2]
[313068444,1706715040336,-4335.94,0.0002,2]
[313068445,1706715040345,-3359.32,0.0002,2]
[313068446,1706715040354,-9272.51,0.0002,2]
[313068447,1706715040364,-2196.8,0.0002,2]
[313068448,1706715040374,-564.91,0.0002,2]
[313068449,1706715040383,-1907.48,0.0002,2]
[313068450,1706715040394,-4819.18,0.0002,2]
[313068451,1706715040403,-1644.62,0.0002,2]
[313068452,1706715040413,-500.0,0.0002,2]
[313068453,1706715040422,-500.0,0.0002,2]
[313068454,1706715040431,-1941.48,0.0002,2]
[313068455,1706715040441,-500.0,0.0002,2]
[313068456,1706715040451,-564.61,0.0002,2]
[313068457,1706715040460,-500.0,0.0002,2]
[313068458,1706715040469,-500.0,0.0002,2]
[313068459,1706715040479,-1929.66,0.0002,2]
[313068460,1706715040488,-1765.6,0.0002,2]
[313068461,1706715040498,-575.10908634,0.0002,2]
[313068462,1706715040507,-500.0,0.0002,2]
[313068463,1706715040516,-500.0,0.0002,2]
[313068464,1706715040526,-2831.04,0.0002,2]
[313068465,1706715040535,-1183.02,0.0002,2]
[313068466,1706715040545,-651.75,0.0002,2]
[313068467,1706715040555,-500.0,0.0002,2]
[313068468,1706715040564,-500.0,0.0002,2]
[313068469,1706715040577,-4409.543309,0.0002,2]
[313068470,1706715040586,-4409.543309,0.0002,2]
[313068471,1706715040596,-4409.543309,0.0002,2]
[313068472,1706715040605,-4409.543309,0.0002,2]
[313068473,1706715040614,-2461.89,0.0002,2]
[313068474,1706715040624,-508.71,0.0002,2]
[313068475,1706715040633,-3137.61,0.0002,2]
[313068476,1706715040644,-151.0,0.00020008,2]
[313068477,1706715040659,-500.0,0.00020038,2]
[313068478,1706715040674,-1179.45,0.00020038,2]
[313068479,1706715040688,-500.0,0.00020038,2]
[313068480,1706715040699,-151.0,0.00020038,2]
[313068481,1706715040712,-500.0,0.00020038,2]
[313068482,1706715040725,-3784.54,0.00020038,2]
[313068483,1706715040738,-1360.05,0.00020038,2]
[313068484,1706715040752,-500.0,0.00020038,2]
[313068485,1706715040766,-500.0,0.00020038,2]
[313068486,1706715040777,-151.0,0.00020038,2]
[313068487,1706715040790,-151.0,0.00020038,2]
[313068488,1706715040803,-500.0,0.00020053,2]
[313068489,1706715040815,-151.51515152,0.00020056,2]
[313068490,1706715040828,-413.30558141,0.00020216,2]
[313068491,1706715040842,-500.0,0.00020273,2]
[313068492,1706715040854,-500.0,0.00020273,2]
[313068493,1706715040864,-500.0,0.00020273,2]
[313068494,1706715040878,-645.59,0.00020273,2]